bitfinex/quotes_SOLUSD_20220302
["timestamp","ask_amount","ask_price","bid_price","bid_amount"]
[1646192630919,121.1922,104.52,104.44,14.3613]
[1646192631518,121.1922,104.52,104.45,0.18981109]
[1646192631820,181.47162914,104.52,104.44,14.3613]
[1646192632019,0.18670501,104.51,104.42,16.91184003]
[1646192632221,181.47162914,104.52,104.42,16.91184003]
[1646192632420,181.47162914,104.52,104.4,6.37604003]
[1646192632624,0.21947495,104.51,104.4,6.37604003]
[1646192633022,182.77072708,104.52,104.4,6.37604003]
[1646192633220,96.35,104.48,104.4,3.827]
[1646192633420,96.35,104.46,104.37,2.54904003]
[1646192633621,96.35,104.44,104.35,10.00442707]
[1646192633821,140.7093108,104.43,104.32,136.75966133]
[1646192634022,140.7093108,104.43,104.33,3.832]
[1646192634220,96.35,104.43,104.33,13.83825418]
[1646192634825,96.35,104.45,104.33,13.83825418]
[1646192635023,96.35,104.45,104.36,14.3699]
[1646192635623,96.35,104.43,104.36,14.3699]
[1646192636021,23.8459,104.46,104.36,14.3699]
[1646192636221,23.8459,104.46,104.37,0.27566612]
[1646192636426,23.8459,104.46,104.38,3.83]
[1646192636621,23.8459,104.46,104.4,14.3637]
[1646192637228,23.8459,104.46,104.4,16.91274003]
[1646192637627,23.8459,104.46,104.4,14.3637]
[1646192638125,173.05674306,104.46,104.4,14.3637]
[1646192638329,0.23677634,104.45,104.4,14.3637]
[1646192638525,173.05674306,104.46,104.4,14.3637]
[1646192639127,173.05674306,104.46,104.38,14.3682]
[1646192639929,173.05674306,104.46,104.33,25.37625418]
[1646192640127,0.31696062,104.45,104.34,47.9014]
[1646192640328,196.19534306,104.46,104.35,3.831]
[1646192640528,187.42834306,104.46,104.35,3.831]
[1646192641129,187.42834306,104.46,104.36,14.3705]
[1646192641527,200.44890628,104.46,104.33,13.83725418]
[1646192641727,200.44890628,104.46,104.32,5.00214472]
[1646192641728,110.7283,104.41,104.32,5.00214472]
[1646192641929,8.617,104.41,104.33,10.01059554]
[1646192642228,103.3531,104.46,104.34,14.3741]
[1646192642431,99.5221,104.46,104.33,26.27750614]
[1646192642628,99.5221,104.46,104.34,47.9007]
[1646192642828,210.2438,104.46,104.34,47.9007]
[1646192643030,0.11567013,104.45,104.34,47.9007]
[1646192643230,145.99998453,104.45,104.34,47.9007]
[1646192643453,145.8843144,104.45,104.34,47.9007]
[1646192643632,49.5343144,104.45,104.34,47.9007]
[1646192643931,145.8843144,104.45,104.37,14.3703]
[1646192645132,0.36441254,104.44,104.37,14.3703]
[1646192645732,0.36441254,104.44,104.35,20.75334003]
[1646192645932,145.8843144,104.45,104.35,20.75334003]
[1646192646731,158.91060146,104.45,104.35,18.2043]
[1646192646932,173.28530146,104.45,104.35,18.2043]
[1646192647131,157.4243144,104.45,104.35,18.2043]
[1646192647536,162.4243144,104.45,104.35,18.2043]
[1646192648134,150.8843144,104.45,104.36,0.41299756]
[1646192648333,54.5343144,104.45,104.36,14.78529756]
[1646192648537,49.5343144,104.45,104.36,14.3723]
[1646192649137,5.0,104.46,104.36,16.92134003]
[1646192649337,5.0,104.46,104.37,12.01892879]
[1646192649536,23.959,104.47,104.4,14.3624]
[1646192650636,51.31097728,104.46,104.4,14.3624]
[1646192650837,23.959,104.47,104.4,14.3624]
[1646192651937,0.19689762,104.46,104.4,14.3624]
[1646192652138,181.0978936,104.47,104.4,14.3624]
[1646192652339,181.0978936,104.47,104.38,14.3697]
[1646192652644,190.3108936,104.47,104.38,14.3697]
[1646192653050,23.959,104.47,104.38,16.91874003]
[1646192653243,23.959,104.47,104.39,0.42714261]
[1646192653442,23.959,104.47,104.41,14.3596]
[1646192653843,23.959,104.47,104.41,16.90864003]
[1646192654343,23.959,104.47,104.41,14.3596]
[1646192654745,23.959,104.47,104.41,16.90864003]
[1646192656842,0.40974381,104.46,104.41,16.90864003]
[1646192657044,23.959,104.47,104.41,16.90864003]
[1646192657243,23.959,104.47,104.41,14.3596]
[1646192657444,120.309,104.47,104.41,14.3596]
[1646192658961,0.15727882,104.46,104.41,14.3596]
[1646192659363,23.959,104.47,104.42,0.12477742]
[1646192659562,23.959,104.47,104.42,2.67381745]
[1646192659762,23.959,104.47,104.43,16.90784003]
[1646192660162,23.959,104.47,104.44,0.28574708]
[1646192660366,14.5627448,104.55,104.44,0.28574708]
[1646192660367,3.0227448,104.55,104.46,0.54547793]
[1646192660564,3.0227448,104.55,104.46,105.63947793]
[1646192660762,3.0227448,104.55,104.48,14.3532]
[1646192660962,3.0227448,104.55,104.48,25.8932]
[1646192661163,3.0227448,104.55,104.48,28.44224003]
[1646192661561,63.41422031,104.55,104.48,28.44224003]
[1646192661762,3.0227448,104.55,104.48,25.8932]
[1646192661964,3.0227448,104.55,104.48,14.3532]
[1646192662767,0.10725499,104.54,104.48,14.3532]
[1646192662973,3.0227448,104.55,104.48,14.3532]
[1646192664369,3.0227448,104.55,104.49,0.15648013]
[1646192664767,3.0227448,104.55,104.5,14.3508]
[1646192667268,148.91514675,104.55,104.5,14.3508]
[1646192667469,148.91514675,104.55,104.46,5.0]
[1646192667768,148.91514675,104.55,104.4,21.968422]
[1646192667769,0.16741451,104.54,104.4,21.968422]
[1646192667967,152.93945127,104.53,104.42,14.364]
[1646192668169,164.47945127,104.53,104.42,14.364]
[1646192668367,152.93945127,104.53,104.42,14.364]
[1646192668673,96.35,104.53,104.42,14.364]
[1646192668868,47.537,104.54,104.43,108.2962102]
[1646192669069,47.537,104.54,104.46,14.3524]
[1646192669367,47.537,104.54,104.46,25.8924]
[1646192669568,47.537,104.54,104.46,16.90144003]
[1646192669767,54.86991864,104.53,104.46,14.3524]
[1646192669969,96.35,104.52,104.46,14.3524]
[1646192670369,96.35,104.53,104.46,14.3524]
[1646192670568,47.537,104.54,104.47,0.51182293]
[1646192670969,143.887,104.54,104.49,14.3535]
[1646192671572,28.9429,104.58,104.5,0.21442604]
[1646192671771,28.9429,104.58,104.49,2.54904003]
[1646192671974,96.35,104.57,104.52,14.349]
[1646192672174,96.35,104.57,104.47,14.08904003]
[1646192672573,152.16012349,104.54,104.47,2.54904003]
[1646192672774,152.16012349,104.54,104.45,2.54904003]
[1646192672972,152.16012349,104.54,104.43,23.55847423]
[1646192673276,152.16012349,104.54,104.46,14.3567]
[1646192673473,152.16012349,104.54,104.42,11.54]
[1646192673673,152.16012349,104.54,104.41,35.09847423]
[1646192674072,152.16012349,104.54,104.42,2.54904003]
[1646192674275,47.77483306,104.52,104.42,2.54904003]
[1646192674473,96.35,104.52,104.44,14.3595]
[1646192674876,96.35,104.52,104.44,16.90854003]
[1646192675477,148.74954241,104.52,104.44,16.90854003]
[1646192675881,0.19546579,104.51,104.44,14.3595]
[1646192676079,148.74954241,104.52,104.44,14.3595]
[1646192676881,148.74954241,104.52,104.42,2.54904003]
[1646192677282,148.74954241,104.52,104.41,59.4095]
[1646192677688,148.74954241,104.52,104.41,47.8695]
[1646192678088,148.74954241,104.52,104.43,14.3618]
[1646192678490,96.35,104.52,104.43,14.3618]
[1646192678785,96.35,104.52,104.44,0.29068044]
[1646192679185,96.35,104.52,104.43,14.08904003]
[1646192679387,144.84956251,104.51,104.43,14.08904003]
[1646192679586,96.35,104.51,104.43,14.08904003]
[1646192679986,142.742,104.53,104.46,14.3577]
[1646192680688,203.01399856,104.53,104.46,14.3577]
[1646192682391,106.66399856,104.53,104.46,14.3577]
[1646192682589,46.392,104.53,104.46,14.3577]
[1646192683188,46.392,104.53,104.46,25.8977]
[1646192683389,3.0227448,104.5,104.46,25.8977]
[1646192685895,3.0227448,104.5,104.47,0.54547793]
[1646192686096,3.0227448,104.5,104.48,14.82162352]
[1646192686494,3.0227448,104.5,104.48,26.36162352]
[1646192686693,3.0227448,104.5,104.48,28.91066355]
[1646192686893,1.9478448,104.5,104.48,31.32766533]
[1646192687097,23.9429,104.58,104.48,52.92557239]
[1646192687596,5.0,104.6,104.48,207.91557239]
[1646192687794,5.0,104.6,104.53,14.3386]
[1646192687995,0.47619048,104.61,104.54,11.97925341]
[1646192688195,0.47619048,104.61,104.54,218.92163164]
[1646192688395,0.47619048,104.61,104.55,2.54904003]
[1646192688598,0.47619048,104.61,104.56,158.2866056]
[1646192688797,0.47619048,104.61,104.56,191.01466281]
[1646192688995,0.47619048,104.61,104.57,2.54904003]
[1646192689195,0.47619048,104.61,104.58,11.54]
[1646192689395,0.47619048,104.61,104.59,0.46843034]
[1646192689596,0.47619048,104.61,104.6,11.54]
[1646192690801,0.47619048,104.61,104.6,53.45179724]
[1646192692626,0.47619048,104.61,104.6,28.42474003]
[1646192693026,0.47619048,104.61,104.6,25.8757]
[1646192693623,131.82619048,104.61,104.57,0.00144003]
[1646192693826,35.47619048,104.61,104.57,0.00144003]
[1646192695821,35.47619048,104.61,104.58,0.15390178]
[1646192696022,0.46843034,104.6,104.57,14.34014003]
[1646192696222,0.46843034,104.6,104.57,25.88014003]
[1646192696426,0.47619048,104.61,104.57,11.54144003]
[1646192697823,0.47619048,104.61,104.57,0.00144003]
[1646192698023,65.47619048,104.61,104.56,13.34164003]
[1646192698225,0.3375214,104.6,104.56,13.34164003]
[1646192698424,0.3375214,104.6,104.57,11.54]
[1646192698626,0.46843034,104.59,104.57,11.54]
[1646192698826,65.47619048,104.61,104.57,11.54]
[1646192699031,0.47619048,104.61,104.57,11.54]
[1646192699326,0.47619048,104.61,104.58,2.76232928]
[1646192699527,0.47619048,104.61,104.59,11.56263736]
[1646192699731,0.47619048,104.61,104.59,28.44587739]
[1646192699927,0.47619048,104.61,104.59,25.89683736]
[1646192700229,0.47619048,104.61,104.6,2.54904003]
[1646192700430,0.94462082,104.61,104.58,5.0]
[1646192700628,0.94462082,104.61,104.57,2.54904003]
[1646192700828,0.22013756,104.6,104.56,11.54]
[1646192701129,0.47619048,104.61,104.56,11.54]
[1646192701537,0.47619048,104.61,104.56,14.08904003]
[1646192702129,0.47619048,104.61,104.56,22.52025673]
[1646192702733,0.47619048,104.61,104.56,36.85825673]
[1646192703935,0.47619048,104.61,104.56,30.59825673]
[1646192704736,0.47619048,104.61,104.56,14.08904003]
[1646192705133,0.10803961,104.6,104.56,14.08904003]
[1646192705333,0.47619048,104.61,104.56,14.08904003]
[1646192705932,0.47619048,104.61,104.57,0.14307705]
[1646192706132,0.47619048,104.61,104.58,11.54]
[1646192706836,0.48843034,104.6,104.56,11.54]
[1646192707637,0.48843034,104.6,104.57,3.823]
[1646192707840,0.47619048,104.61,104.58,16.54]
[1646192708039,0.47619048,104.61,104.59,3.823]
[1646192708242,0.47619048,104.61,104.6,11.54]
[1646192709439,2.7638848,104.66,104.62,154.01]
[1646192709636,1.2172291,104.7,104.64,96.35]
[1646192709936,77.2867,104.79,104.72,3.77274261]
[1646192709937,67.17223814,104.77,104.72,3.77274261]
[1646192710136,48.8339,104.8,104.72,3.77274261]
[1646192710337,145.1839,104.8,104.72,3.77274261]
[1646192710537,0.51929524,104.79,104.72,3.77274261]
[1646192710737,145.1839,104.8,104.72,3.77274261]
[1646192710938,0.50930217,104.79,104.72,3.77274261]
[1646192711136,60.14245339,104.79,104.72,3.77274261]
[1646192711539,0.52,104.81,104.72,15.31274261]
[1646192711740,0.52,104.81,104.72,17.86178264]
[1646192712142,0.52,104.81,104.72,15.31274261]
[1646192712341,96.87,104.81,104.72,15.31274261]
[1646192712542,60.99192387,104.8,104.72,15.31274261]
[1646192712742,60.41783226,104.8,104.72,15.31274261]
[1646192713141,0.52,104.81,104.72,15.31274261]
[1646192713343,0.52,104.81,104.72,130.84066048]
[1646192713542,0.52,104.81,104.73,125.16493991]
[1646192713746,0.52,104.81,104.74,11.54]
[1646192713945,0.52,104.81,104.74,14.08904003]
[1646192714743,0.52,104.81,104.74,25.8536]
[1646192714945,0.52,104.81,104.74,11.54]
[1646192715345,0.52,104.81,104.75,3.817]
[1646192715644,0.52,104.81,104.75,15.357]
[1646192715845,0.52,104.81,104.72,11.54]
[1646192716046,0.54420992,104.8,104.71,11.54]
[1646192716445,0.52,104.81,104.71,11.54]
[1646192716645,101.35,104.8,104.71,11.54]
[1646192716846,49.54232562,104.79,104.71,11.54]
[1646192717047,145.89232562,104.79,104.66,3.818]
[1646192717247,57.22589592,104.77,104.67,11.54]
[1646192717447,56.51321871,104.77,104.68,3.819]
[1646192717647,56.51321871,104.77,104.68,11.54]
[1646192718047,56.51321871,104.77,104.69,3.819]
[1646192718248,56.51321871,104.77,104.66,3.819]
[1646192718483,57.06376598,104.77,104.65,11.54]
[1646192718653,96.35,104.75,104.63,14.08904003]
[1646192718950,0.28254215,104.73,104.6,20.359]
[1646192719152,0.28254215,104.73,104.61,11.54]
[1646192719354,291.12776307,104.74,104.6,5.0]
[1646192719556,57.35900082,104.71,104.61,3.821]
[1646192720152,57.35900082,104.71,104.59,11.54]
[1646192720559,96.35,104.7,104.6,3.822]
[1646192720755,59.46748677,104.69,104.58,16.54]
[1646192720954,129.13617884,104.69,104.59,3.822]
[1646192721154,129.13617884,104.69,104.58,16.54]
[1646192721455,230.48617884,104.69,104.59,3.822]
[1646192721958,44.274307,104.65,104.59,3.822]
[1646192722157,140.624307,104.65,104.58,5.0]
[1646192722355,140.624307,104.65,104.55,61.029]
[1646192722557,140.624307,104.65,104.55,49.489]
[1646192723763,145.624307,104.65,104.55,49.489]
[1646192723962,159.970407,104.65,104.55,49.489]
[1646192724363,96.35,104.63,104.55,49.489]
[1646192724566,147.39638448,104.62,104.55,49.489]
[1646192726681,147.39638448,104.62,104.56,0.1232247]
[1646192726882,96.35,104.6,104.55,49.489]
[1646192727081,145.37841117,104.59,104.55,49.489]
[1646192727681,145.37841117,104.59,104.55,0.009]
[1646192728081,96.35,104.56,104.48,3.825]
[1646192728283,140.28929896,104.55,104.42,16.54]
[1646192728481,145.28929896,104.55,104.42,5.0]
[1646192728683,0.1844471,104.54,104.42,5.0]
[1646192728883,97.53655624,104.53,104.42,5.0]
[1646192729082,96.35,104.51,104.4,10.428422]
[1646192729283,97.61301796,104.49,104.4,10.428422]
[1646192729482,96.35,104.49,104.4,10.428422]
[1646192729682,101.35,104.48,104.41,3.829]
[1646192729885,101.35,104.48,104.4,10.428422]
[1646192730283,96.35,104.46,104.35,2.54904003]
[1646192730484,55.11391201,104.45,104.36,3.831]
[1646192730685,55.11391201,104.45,104.34,6.38004003]
[1646192730893,151.46391201,104.45,104.34,6.38004003]
[1646192731085,151.46391201,104.45,104.34,3.831]
[1646192731282,151.46391201,104.45,104.33,3.831]
[1646192731490,164.40111278,104.45,104.33,3.831]
[1646192731685,164.40111278,104.45,104.31,14.3749]
[1646192731686,164.40111278,104.45,104.31,17.7059]
[1646192731883,96.35,104.43,104.31,17.7059]
[1646192732083,96.35,104.41,104.3,3.831]
[1646192732286,55.47233476,104.4,104.3,3.831]
[1646192732490,55.47233476,104.4,104.31,0.00971554]
[1646192732685,12.8255163,104.39,104.25,14.3821]
[1646192732884,58.79583075,104.38,104.22,15.374]
[1646192733085,0.315316,104.37,104.23,2.54904003]
[1646192733285,82.95113075,104.38,104.24,17.46591152]
[1646192733689,82.95113075,104.38,104.24,42.59737483]
[1646192733889,3.834,104.37,104.23,23.80093991]
[1646192734090,47.1606622,104.36,104.23,3.835]
[1646192734489,47.1606622,104.36,104.23,31.29637643]
[1646192734691,47.1606622,104.36,104.23,69.18635637]
[1646192735093,24.1553,104.38,104.23,69.18635637]
[1646192735291,24.1553,104.38,104.25,0.43698517]
[1646192735493,24.1553,104.38,104.27,0.43698517]
[1646192735792,24.1553,104.38,104.26,15.374]
[1646192735793,24.1553,104.38,104.28,3.834]
[1646192735993,24.1553,104.38,104.28,11.76969477]
[1646192736198,24.1553,104.38,104.29,6.38204003]
[1646192736401,24.1553,104.38,104.29,20.75894003]
[1646192736593,46.598,104.4,104.29,20.75894003]
[1646192736594,46.598,104.4,104.31,0.15343463]
[1646192736796,46.598,104.4,104.33,5.0]
[1646192736997,46.598,104.4,104.32,2.54904003]
[1646192737195,46.598,104.4,104.34,2.54904003]
[1646192737396,59.19356447,104.39,104.34,2.54904003]
[1646192737599,59.19356447,104.39,104.32,2.54904003]
[1646192738096,59.19356447,104.39,104.29,20.75854003]
[1646192738297,59.19356447,104.39,104.29,16.92554003]
[1646192739100,59.19356447,104.39,104.27,2.54904003]
[1646192739300,0.14132068,104.38,104.27,3.833]
[1646192739499,59.19356447,104.39,104.26,25.9205]
[1646192739803,155.54356447,104.39,104.27,3.834]
[1646192740001,158.0926045,104.39,104.26,23.80093991]
[1646192740203,61.7426045,104.39,104.23,27.94526396]
[1646192740401,59.19356447,104.39,104.23,27.94526396]
[1646192740601,59.19356447,104.39,104.24,6.38304003]
[1646192740808,59.19356447,104.39,104.25,5.0]
[1646192741005,59.19356447,104.39,104.25,2.54904003]
[1646192741006,178.12186447,104.39,104.25,2.54904003]
[1646192741202,189.66186447,104.39,104.25,2.54904003]
[1646192741602,189.66186447,104.39,104.25,7.54904003]
[1646192741802,93.31186447,104.39,104.25,21.93234003]
[1646192742004,81.77186447,104.39,104.26,14.2546239]
[1646192742202,81.77186447,104.39,104.27,0.32067539]
[1646192742402,81.77186447,104.39,104.29,5.0]
[1646192742605,81.77186447,104.39,104.27,2.86971542]
[1646192742804,81.77186447,104.39,104.28,2.54904003]
[1646192743703,81.77186447,104.39,104.27,5.0]
[1646192743903,0.41211552,104.38,104.26,2.54904003]
[1646192744105,178.12186447,104.39,104.26,2.54904003]
[1646192744502,81.77186447,104.39,104.26,2.54904003]
[1646192744726,81.77186447,104.39,104.27,0.43698517]
[1646192745103,81.77186447,104.39,104.27,2.54904003]
[1646192745905,60.60233924,104.37,104.26,14.3821]
[1646192746304,60.60233924,104.37,104.26,19.3821]
[1646192746505,50.39767823,104.35,104.26,14.3821]
[1646192746706,118.9283,104.39,104.26,14.3821]
[1646192746909,22.5783,104.39,104.27,0.3324795]
[1646192747307,22.5783,104.39,104.28,18.96891754]
[1646192747507,22.5783,104.39,104.28,30.50891754]
[1646192747708,22.5783,104.39,104.29,2.54904003]
[1646192747910,22.5783,104.39,104.29,7.54904003]
[1646192748308,22.5783,104.39,104.3,2.54904003]
[1646192749110,44.41727903,104.38,104.3,7.54904003]
[1646192749309,44.41727903,104.38,104.3,2.54904003]
[1646192750515,44.41727903,104.38,104.28,21.92854003]
[1646192750710,96.35,104.37,104.28,21.92854003]
[1646192750910,146.00103716,104.36,104.28,19.3595]
[1646192751209,145.52907385,104.36,104.28,5.0]
[1646192751810,145.52907385,104.36,104.25,11.54]
[1646192752110,57.62007385,104.36,104.26,0.405538]
[1646192752311,57.62007385,104.36,104.26,11.945538]
[1646192753120,96.35,104.33,104.26,11.54]
[1646192753313,153.90171288,104.32,104.24,15.374]
[1646192753513,57.55171288,104.32,104.24,20.374]
[1646192753714,22.90675047,104.32,104.24,8.834]
[1646192753915,22.90675047,104.32,104.25,2.54904003]
[1646192754114,96.35,104.29,104.25,2.54904003]
[1646192754715,154.98700515,104.28,104.25,2.54904003]
[1646192754916,154.98700515,104.28,104.26,0.00586649]
[1646192755114,0.53843033,104.27,104.21,11.54]
[1646192755517,0.53843033,104.27,104.21,14.08904003]
[1646192756916,0.53843033,104.27,104.22,0.14769039]
[1646192757115,0.53843033,104.27,104.22,11.68769039]
[1646192757322,23.6337,104.32,104.23,5.0]
[1646192757516,23.6337,104.32,104.23,7.54904003]
[1646192757717,96.35,104.31,104.24,0.14769039]
[1646192757917,96.35,104.31,104.23,7.54904003]
[1646192757918,0.20222944,104.3,104.23,5.76902142]
[1646192758115,96.35,104.31,104.23,5.76902142]
[1646192758319,96.35,104.31,104.25,2.54904003]
[1646192758717,150.51661898,104.3,104.24,3.2]
[1646192758916,96.35,104.3,104.24,3.2]
[1646192759519,119.9837,104.32,104.24,3.2]
[1646192759917,141.51123236,104.31,104.24,3.2]
[1646192760517,96.35,104.31,104.24,3.2]
[1646192760820,23.6337,104.32,104.24,16.93584003]
[1646192761017,119.9837,104.32,104.24,16.93584003]
[1646192761417,119.9837,104.32,104.24,22.24137493]
[1646192761816,119.9837,104.32,104.25,3.835]
[1646192762017,119.9837,104.32,104.25,2.6133927]
[1646192762617,119.9837,104.32,104.24,16.93584003]
[1646192763219,23.6337,104.32,104.24,16.93584003]
[1646192763423,23.9953,104.33,104.24,16.93584003]
[1646192763424,23.3698,104.35,104.25,15.375]
[1646192763620,23.3698,104.35,104.28,14.3821]
[1646192763821,23.3698,104.35,104.28,25.9221]
[1646192764020,23.3698,104.35,104.28,28.47114003]
[1646192764427,171.23172845,104.35,104.28,28.47114003]
[1646192764619,171.23172845,104.35,104.28,25.9221]
[1646192765220,74.88172845,104.35,104.28,25.9221]
[1646192765625,74.88172845,104.35,104.28,28.47114003]
[1646192766422,0.29998188,104.34,104.28,28.47114003]
[1646192766622,74.88172845,104.35,104.28,28.47114003]
[1646192766822,23.3698,104.35,104.28,28.47114003]
[1646192767444,23.3698,104.35,104.28,31.67114003]
[1646192767847,0.21134564,104.34,104.28,31.67114003]
[1646192768047,54.65581023,104.34,104.28,31.67114003]
[1646192768244,54.44446459,104.34,104.28,31.67114003]
[1646192768445,54.44446459,104.34,104.28,28.47114003]
[1646192769847,150.79446459,104.34,104.28,28.47114003]
[1646192770950,0.29215427,104.33,104.26,14.3853]
[1646192771349,150.79446459,104.34,104.26,14.3853]
[1646192771749,0.21481388,104.33,104.26,14.3853]
[1646192772248,150.79446459,104.34,104.26,14.3853]
[1646192772449,150.79446459,104.34,104.26,16.93434003]
[1646192774250,150.79446459,104.34,104.26,43.19178498]
[1646192774451,150.79446459,104.34,104.26,16.93434003]
[1646192776155,54.44446459,104.34,104.26,16.93434003]
[1646192776353,96.8284,104.37,104.26,16.93434003]
[1646192776354,23.8407,104.37,104.26,16.93434003]
[1646192776554,122.7046,104.45,104.27,0.28929478]
[1646192776755,206.8491,104.45,104.32,14.3736]
[1646192776954,206.8491,104.45,104.33,11.54]
[1646192777154,145.8798808,104.44,104.33,14.08904003]
[1646192777453,145.8798808,104.44,104.34,2.54904003]
[1646192777656,145.8798808,104.44,104.36,14.3727]
[1646192777854,3.831,104.43,104.32,2.54904003]
[1646192778054,96.35,104.41,104.26,16.38266186]
[1646192778255,96.35,104.39,104.27,14.08904003]
[1646192778454,96.35,104.37,104.27,39.95648498]
[1646192778661,59.47517649,104.36,104.29,47.9303]
[1646192778861,96.35,104.38,104.3,14.3789]
[1646192779056,46.814,104.41,104.3,25.9189]
[1646192779655,96.35,104.4,104.3,25.9189]
[1646192779857,96.35,104.38,104.3,25.9189]
[1646192780056,96.35,104.36,104.26,2.54904003]
[1646192780257,96.35,104.34,104.25,3.835]
[1646192780458,96.35,104.32,104.25,3.835]
[1646192780657,146.23701538,104.31,104.25,3.835]
[1646192782966,0.24532824,104.3,104.25,3.835]
[1646192783160,146.23701538,104.31,104.25,3.835]
[1646192784762,146.23701538,104.31,104.24,14.3889]
[1646192786164,100.186,104.34,104.24,14.3889]
[1646192786364,96.35,104.34,104.25,14.08904003]
[1646192786566,96.35,104.34,104.26,14.3859]
[1646192787163,96.35,104.34,104.26,16.93494003]
[1646192787164,142.6999236,104.34,104.26,16.93494003]
[1646192787368,0.28697444,104.33,104.26,14.3859]
[1646192787567,142.6999236,104.34,104.26,14.3859]
[1646192787964,0.23843033,104.33,104.26,14.3859]
[1646192788165,142.6999236,104.34,104.26,14.3859]
[1646192788767,0.27724881,104.33,104.25,3.2]
[1646192788965,0.27724881,104.33,104.24,14.3887]
[1646192789167,142.6999236,104.34,104.22,14.08904003]
[1646192789365,96.35,104.3,104.22,11.54]
[1646192789575,96.35,104.28,104.2,14.08904003]
[1646192789767,96.35,104.26,104.16,0.43440505]
[1646192789966,96.35,104.24,104.18,14.3973]
[1646192790167,144.14769236,104.23,104.18,25.9373]
[1646192790366,144.14769236,104.23,104.18,11.54]
[1646192790767,144.14769236,104.23,104.16,15.17440505]
[1646192791168,0.31631513,104.22,104.16,3.63440505]
[1646192791366,144.14769236,104.23,104.16,3.63440505]
[1646192791773,144.14769236,104.23,104.16,0.43440505]
[1646192792768,147.98569236,104.23,104.09,48.0224]
[1646192792968,96.35,104.19,104.09,3.2]
[1646192793171,96.35,104.17,104.01,146.65214819]
[1646192793370,58.49530017,104.15,104.05,14.4139]
[1646192793567,46.4564,104.14,104.05,14.4139]
[1646192793768,46.4564,104.14,104.05,25.9539]
[1646192793969,46.4564,104.14,104.05,28.13150022]
[1646192794168,46.4564,104.14,104.05,25.9539]
[1646192794568,46.4564,104.14,104.05,14.4139]
[1646192794769,60.97620105,104.13,104.05,14.4139]
[1646192794971,60.97620105,104.13,104.03,14.416]
[1646192795171,46.4564,104.14,104.04,11.54]
[1646192795770,46.4564,104.14,104.02,50.3635935]
[1646192795973,0.21403927,104.13,104.02,50.3635935]
[1646192796171,52.69633978,104.13,104.03,11.54]
[1646192796371,46.4564,104.14,104.05,14.413]
[1646192796570,46.4564,104.14,104.06,11.54]
[1646192796772,24.8853,104.16,104.06,11.54]
[1646192797276,24.8853,104.16,104.06,14.08904003]
[1646192797475,47.34605871,104.18,104.07,14.4102]
[1646192797675,47.34605871,104.18,104.08,11.54]
[1646192797875,47.34605871,104.18,104.1,5.0]
[1646192798076,101.8881,104.21,104.11,11.54]
[1646192798276,23.1122,104.21,104.11,11.54]
[1646192798474,23.1122,104.21,104.11,14.08904003]
[1646192798676,23.1122,104.21,104.12,0.114561]
[1646192798873,23.1122,104.21,104.14,14.4011]
[1646192799073,23.1122,104.21,104.15,11.54]
[1646192799475,73.7357,104.24,104.15,11.54]
[1646192799676,73.7357,104.24,104.15,21.57594324]
[1646192799871,75.4026,104.27,104.15,21.57594324]
[1646192800079,95.85554837,104.26,104.15,16.57594324]
[1646192800273,96.85687843,104.26,104.15,30.97514324]
[1646192800474,49.53023006,104.26,104.15,30.97514324]
[1646192800674,49.53023006,104.26,104.15,19.43514324]
[1646192800876,49.53023006,104.26,104.16,11.54]
[1646192801275,1.00133006,104.26,104.17,2.54904003]
[1646192801477,1.00133006,104.26,104.19,14.392]
[1646192801779,1.00133006,104.26,104.2,11.54]
[1646192802378,1.00133006,104.26,104.2,11.04]
[1646192802575,23.3946,104.3,104.21,14.3894]
[1646192802779,46.395,104.33,104.22,11.54]
[1646192802975,46.395,104.33,104.23,0.14393628]
[1646192803178,46.395,104.33,104.24,11.54]
[1646192803378,46.395,104.33,104.24,14.08904003]
[1646192803776,46.395,104.33,104.26,14.3842]
[1646192803978,46.395,104.33,104.26,25.9242]